fUST/lending_fUST_20250105
["ID","MTS","AMOUNT","RATE_DAILY","PERIOD"]
[347652986,1736023845465,-500.0,0.00019178,2]
[347652987,1736023845474,-518.84431296,0.00019178,2]
[347652990,1736023845483,-500.0,0.00019178,2]
[347652991,1736023845494,-545.78,0.00019178,2]
[347652992,1736023845503,-500.0,0.00019178,2]
[347652993,1736023845514,-571.59,0.00019178,2]
[347652994,1736023845524,-11234.93,0.00019178,2]
[347652995,1736023845533,-500.0,0.00019178,2]
[347652996,1736023845542,-1702.22,0.00019178,2]
[347652997,1736023845551,-500.0,0.00019178,2]
[347652998,1736023845561,-500.0,0.00019178,2]
[347652999,1736023845570,-500.0,0.00019178,2]
[347653000,1736023845581,-527.37,0.00019178,2]
[347653001,1736023845590,-325.61127897,0.00019178,2]
[347653002,1736023845599,-500.0,0.00019178,2]
[347653003,1736023845609,-500.0,0.00019178,2]
[347653004,1736023845619,-2186.23,0.00019178,2]
[347653005,1736023845630,-6067.28,0.00019178,2]
[347653006,1736023845640,-500.0,0.00019178,2]
[347653007,1736023845649,-500.0,0.00019178,2]
[347653008,1736023845658,-1991.61,0.00019178,2]
[347653009,1736023845668,-500.0,0.00019178,2]
[347653010,1736023845677,-500.0,0.00019178,2]
[347653011,1736023845686,-500.0,0.00019178,2]
[347653013,1736023845696,-500.0,0.00019178,2]
[347653014,1736023845706,-500.0,0.00019178,2]
[347653015,1736023845716,-500.0,0.00019178,2]
[347653016,1736023845725,-500.0,0.00019178,2]
[347653017,1736023845734,-2615.77,0.00019178,2]
[347653018,1736023845745,-1350.66,0.00019178,2]
[347653019,1736023845754,-500.0,0.00019178,2]
[347653020,1736023845763,-500.0,0.00019178,2]
[347653021,1736023845773,-500.0,0.00019178,2]
[347653022,1736023845782,-500.0,0.00019178,2]
[347653023,1736023845791,-629.03,0.00019178,2]
[347653024,1736023845800,-500.0,0.00019178,2]
[347653025,1736023845809,-500.0,0.00019178,2]
[347653026,1736023845818,-500.0,0.00019178,2]
[347653027,1736023845826,-501.06513719,0.00019178,2]
[347653028,1736023845836,-629.03,0.00019178,2]
[347653029,1736023845845,-629.03,0.00019178,2]
[347653031,1736023845854,-629.03,0.00019178,2]
[347653032,1736023845863,-665.77,0.00019178,2]
[347653033,1736023845872,-629.03,0.00019178,2]
[347653034,1736023845882,-629.03,0.00019178,2]
[347653035,1736023845891,-500.0,0.00019178,2]
[347653036,1736023845901,-500.0,0.00019178,2]
[347653037,1736023845910,-2823.74,0.00019178,2]
[347653038,1736023845920,-629.03,0.00019178,2]
[347653039,1736023845929,-629.03,0.00019178,2]
[347653040,1736023845938,-629.03,0.00019178,2]
[347653041,1736023845948,-629.03,0.00019178,2]
[347653042,1736023845957,-969.26,0.00019178,2]
[347653043,1736023845966,-500.0,0.00019178,2]
[347653044,1736023845975,-629.03,0.00019178,2]
[347653045,1736023845985,-382.91909146,0.00019178,2]
[347653046,1736023845994,-629.03,0.00019178,2]
[347653047,1736023846004,-500.0,0.00019178,2]
[347653048,1736023846013,-629.03,0.00019178,2]
[347653049,1736023846023,-629.03,0.00019178,2]
[347653050,1736023846032,-500.0,0.00019178,2]
[347653051,1736023846042,-629.03,0.00019178,2]
[347653052,1736023846051,-629.03,0.00019178,2]
[347653054,1736023846061,-500.0,0.00019178,2]
[347653056,1736023846071,-2507.16,0.00019178,2]
[347653057,1736023846081,-629.03,0.00019178,2]
[347653058,1736023846093,-629.03,0.00019178,2]
[347653059,1736023846103,-507.17243726,0.00019178,2]
[347653060,1736023846112,-629.03,0.00019178,2]
[347653061,1736023846122,-500.0,0.00019178,2]
[347653062,1736023846131,-629.03,0.00019178,2]
[347653063,1736023846143,-500.0,0.00019178,2]
[347653064,1736023846153,-500.0,0.00019178,2]
[347653065,1736023846164,-629.03,0.00019178,2]
[347653066,1736023846175,-629.03,0.00019178,2]
[347653067,1736023846186,-629.03,0.00019178,2]
[347653068,1736023846195,-629.11,0.00019178,2]
[347653069,1736023846205,-500.0,0.00019178,2]
[347653070,1736023846214,-500.0,0.00019178,2]
[347653071,1736023846223,-500.0,0.00019178,2]
[347653072,1736023846232,-1055.8,0.00019178,2]
[347653073,1736023846242,-500.0,0.00019178,2]
[347653074,1736023846253,-500.0,0.00019178,2]
[347653075,1736023846262,-500.0,0.00019178,2]
[347653076,1736023846273,-500.0,0.00019178,2]
[347653077,1736023846282,-166.484736,0.00019178,2]
[347653078,1736023846291,-153.79,0.00019178,2]
[347653079,1736023846300,-184.0,0.00019191,2]
[347653080,1736023846311,-184.0,0.00019191,2]
[347653081,1736023846320,-184.0,0.00019191,2]
[347653082,1736023846329,-187.52,0.00019191,2]
[347653083,1736023846338,-165.0,0.00019191,2]
[347653084,1736023846348,-151.0,0.000192,2]
[347653085,1736023846358,-150.08,0.00019209,2]
[347653086,1736023846367,-5619.92589787,0.00019279,2]
[347653087,1736023846376,-1500.0,0.00019283,2]
[347653088,1736023846387,-1500.0,0.00019283,2]
[347653089,1736023846398,-151.0,0.000193,2]
[347653090,1736023846408,-151.0,0.000193,2]
[347653091,1736023846417,-151.0,0.000193,2]
[347653092,1736023846428,-151.0,0.000193,2]
[347653093,1736023846438,-1500.0,0.0001933,2]
[347653094,1736023846448,-500.0,0.00019343,9]
[347653095,1736023846458,-5843.66943226,0.00019352,2]
[347653096,1736023846467,-2500.0,0.00019399,2]
[347653097,1736023846477,-18419.28853824,0.000194,2]
[347653098,1736023846486,-8204.82652074,0.000194,2]
[347653099,1736023846496,-2500.0,0.00019408,2]
[347653100,1736023846507,-2500.0,0.00019417,2]
[347653101,1736023846517,-2500.0,0.00019426,2]
[347653102,1736023846527,-2500.0,0.00019434,2]
[347653103,1736023846536,-2500.0,0.00019443,2]
[347653104,1736023846545,-150.06,0.00019451,2]
[347653105,1736023846554,-160.0,0.00019451,2]
[347653106,1736023846563,-2500.0,0.00019452,2]
[347653107,1736023846574,-498.7377758,0.00019452,3]
[347653108,1736023846583,-498.51273859,0.00019452,3]
[347653109,1736023846593,-505.62603742,0.00019452,3]
[347653110,1736023846603,-500.0,0.00019452,3]
[347653111,1736023846613,-500.0,0.00019452,3]
[347653112,1736023846624,-500.0,0.00019452,3]
[347653113,1736023846634,-500.0,0.00019452,3]
[347653114,1736023846643,-500.0,0.00019452,3]
[347653115,1736023846653,-500.0,0.00019452,3]
[347653116,1736023846662,-500.0,0.00019452,3]
[347653117,1736023846672,-501.89852628,0.00019452,3]
[347653118,1736023846682,-500.0,0.00019452,3]
[347653119,1736023846692,-500.0,0.00019452,3]
[347653120,1736023846701,-504.79859755,0.00019452,3]
[347653121,1736023846712,-500.0,0.00019452,3]
[347653122,1736023846722,-500.0,0.00019452,3]
[347653123,1736023846733,-500.0,0.00019452,3]
[347653124,1736023846742,-500.0,0.00019452,3]
[347653125,1736023846752,-500.0,0.00019452,3]
[347653126,1736023846761,-500.0,0.00019452,3]
[347653127,1736023846771,-500.0,0.00019452,3]
[347653128,1736023846781,-500.0,0.00019452,3]
[347653129,1736023846790,-500.0,0.00019452,3]
[347653130,1736023846799,-500.0,0.00019452,3]
[347653131,1736023846809,-500.0,0.00019452,3]
[347653132,1736023846818,-601.15,0.00019452,3]
[347653133,1736023846827,-500.0,0.00019452,3]
[347653134,1736023846837,-500.0,0.00019452,3]
[347653135,1736023846847,-500.0,0.00019452,3]
[347653136,1736023846856,-500.0,0.00019452,3]
[347653137,1736023846865,-500.0,0.00019452,3]
[347653138,1736023846875,-500.0,0.00019452,3]
[347653139,1736023846887,-500.0,0.00019452,2]
[347653140,1736023846896,-536.48,0.00019452,3]
[347653141,1736023846906,-500.0,0.00019452,3]
[347653142,1736023846916,-500.0,0.00019452,3]
[347653143,1736023846925,-500.0,0.00019452,3]
[347653144,1736023846934,-576.86,0.00019452,3]
[347653145,1736023846943,-500.0,0.00019452,3]
[347653146,1736023846953,-500.0,0.00019452,3]
[347653147,1736023846962,-502.8000514,0.00019452,3]
[347653148,1736023846971,-500.0,0.00019452,3]
[347653149,1736023846981,-500.0,0.00019452,3]
[347653150,1736023846990,-500.0,0.00019452,3]
[347653151,1736023847000,-500.0,0.00019452,3]
[347653152,1736023847010,-500.0,0.00019452,3]
[347653153,1736023847019,-500.0,0.00019452,3]
[347653154,1736023847028,-500.0,0.00019452,3]
[347653155,1736023847038,-500.0,0.00019452,3]
[347653156,1736023847047,-500.0,0.00019452,3]
[347653157,1736023847057,-501.6386118,0.00019452,3]
[347653158,1736023847066,-503.86558555,0.00019452,3]
[347653159,1736023847076,-500.0,0.00019452,3]
[347653160,1736023847085,-291.78587086,0.00019452,3]
[347653161,1736023847098,-503.10872205,0.00019452,3]
[347653162,1736023847108,-500.0,0.00019452,3]
[347653163,1736023847117,-500.0,0.00019452,3]
[347653164,1736023847126,-504.01615632,0.00019452,3]
[347653165,1736023847137,-500.0,0.00019452,3]
[347653166,1736023847146,-500.0,0.00019452,3]
[347653167,1736023847156,-508.04,0.00019452,3]
[347653168,1736023847166,-500.0,0.00019452,3]
[347653169,1736023847177,-500.0,0.00019452,3]
[347653170,1736023847186,-500.0,0.00019452,3]
[347653171,1736023847195,-500.0,0.00019452,3]
[347653172,1736023847205,-383.52264034,0.00019452,3]
[347653173,1736023847215,-500.0,0.00019452,3]
[347653174,1736023847224,-500.0,0.00019452,3]
[347653175,1736023847234,-503.0140394,0.00019452,3]
[347653176,1736023847243,-501.00862458,0.00019452,3]
[347653177,1736023847253,-500.0,0.00019452,3]
[347653178,1736023847262,-500.0,0.00019452,3]
[347653179,1736023847271,-500.0,0.00019452,3]
[347653180,1736023847281,-500.0,0.00019452,3]
[347653181,1736023847292,-500.0,0.00019452,3]
[347653182,1736023847301,-500.0,0.00019452,3]
[347653183,1736023847310,-500.0,0.00019452,3]
[347653184,1736023847320,-500.0,0.00019452,3]
[347653185,1736023847329,-500.0,0.00019452,3]
[347653186,1736023847338,-503.66708583,0.00019452,3]
[347653187,1736023847348,-500.0,0.00019452,3]
[347653188,1736023847358,-500.0,0.00019452,3]
[347653189,1736023847367,-367.62426015,0.00019452,3]
[347653190,1736023847377,-500.0,0.00019452,3]
[347653191,1736023847387,-1580.71,0.00019452,3]
[347653192,1736023847396,-381.26938864,0.00019452,3]
[347653193,1736023847406,-500.0,0.00019452,3]
[347653194,1736023847415,-500.0,0.00019452,3]
[347653195,1736023847424,-500.0,0.00019452,3]
[347653196,1736023847434,-500.0,0.00019452,3]
[347653197,1736023847443,-500.0,0.00019452,3]
[347653198,1736023847452,-321.80187423,0.00019452,3]
[347653199,1736023847462,-500.0,0.00019452,3]
[347653200,1736023847471,-500.0,0.00019452,3]
[347653201,1736023847480,-500.0,0.00019452,3]
[347653202,1736023847490,-500.0,0.00019452,2]
[347653203,1736023847499,-648.56,0.00019452,3]
[347653204,1736023847508,-500.0,0.00019452,3]
[347653205,1736023847518,-500.0,0.00019452,3]
[347653206,1736023847527,-188.99469656,0.00019452,3]
[347653207,1736023847536,-501.08648061,0.00019452,3]
[347653208,1736023847546,-1222.3,0.00019452,3]
[347653209,1736023847555,-585.19,0.00019452,3]
[347653210,1736023847564,-500.0,0.00019452,3]
[347653211,1736023847574,-500.0,0.00019452,3]
[347653212,1736023847584,-500.0,0.00019452,3]
[347653213,1736023847593,-739.14,0.00019452,3]
[347653214,1736023847602,-500.0,0.00019452,3]
[347653215,1736023847613,-503.95,0.00019452,3]
[347653216,1736023847622,-500.0,0.00019452,3]
[347653217,1736023847632,-500.0,0.00019452,3]
[347653218,1736023847641,-368.89847625,0.00019452,3]
[347653219,1736023847650,-1396.31,0.00019452,3]
[347653220,1736023847660,-500.0,0.00019452,3]
[347653221,1736023847669,-710.46,0.00019452,3]
[347653222,1736023847679,-500.0,0.00019452,3]
[347653223,1736023847689,-500.0,0.00019452,3]
[347653224,1736023847700,-500.0,0.00019452,3]
[347653225,1736023847710,-500.0,0.00019452,3]
[347653226,1736023847718,-502.13060033,0.00019452,3]
[347653227,1736023847729,-500.0,0.00019452,3]
[347653228,1736023847738,-500.0,0.00019452,3]
[347653229,1736023847747,-500.0,0.00019452,3]
[347653230,1736023847757,-500.0,0.00019452,3]
[347653231,1736023847766,-500.0,0.00019452,3]
[347653232,1736023847776,-500.0,0.00019452,3]
[347653233,1736023847785,-500.0,0.00019452,3]
[347653234,1736023847796,-500.0,0.00019452,3]
[347653235,1736023847807,-500.0,0.00019452,3]
[347653236,1736023847942,-500.0,0.00019452,3]
[347653237,1736023847952,-469.8528626,0.00019452,3]
[347653238,1736023847962,-500.0,0.00019452,3]
[347653239,1736023847971,-502.62997347,0.00019452,3]
[347653240,1736023847980,-500.0,0.00019452,3]
[347653241,1736023847990,-615.23,0.00019452,3]
[347653242,1736023847999,-500.0,0.00019452,3]
[347653243,1736023848008,-500.0,0.00019452,3]
[347653244,1736023848018,-500.0,0.00019452,3]
[347653245,1736023848027,-808.12,0.00019452,3]
[347653246,1736023848037,-500.0,0.00019452,3]
[347653247,1736023848046,-500.0,0.00019452,3]
[347653248,1736023848056,-500.0,0.00019452,2]
[347653249,1736023848065,-500.0,0.00019452,3]
[347653250,1736023848075,-500.0,0.00019452,3]
[347653251,1736023848084,-500.0,0.00019452,3]
[347653252,1736023848098,-500.0,0.00019452,3]
[347653253,1736023848107,-500.0,0.00019452,3]
[347653254,1736023848117,-500.0,0.00019452,3]
[347653255,1736023848127,-500.0,0.00019452,3]
[347653256,1736023848138,-500.0,0.00019452,3]
[347653257,1736023848147,-409.85561352,0.00019452,3]
[347653258,1736023848157,-500.0,0.00019452,3]
[347653259,1736023848168,-500.0,0.00019452,3]
[347653260,1736023848177,-500.0,0.00019452,3]
[347653261,1736023848186,-501.02733389,0.00019452,3]
[347653262,1736023848195,-500.0,0.00019452,3]
[347653263,1736023848205,-500.0,0.00019452,3]
[347653264,1736023848214,-1095.6,0.00019452,3]
[347653265,1736023848224,-501.05717913,0.00019452,3]
[347653266,1736023848233,-500.0,0.00019452,3]
[347653267,1736023848243,-500.0,0.00019452,3]
[347653268,1736023848253,-501.28282781,0.00019452,3]
[347653269,1736023848262,-500.0,0.00019452,3]
[347653270,1736023848272,-502.47722534,0.00019452,3]
[347653271,1736023848281,-500.0,0.00019452,3]
[347653272,1736023848291,-1065.54,0.00019452,3]
[347653273,1736023848300,-500.0,0.00019452,3]
[347653274,1736023848309,-1379.26,0.00019452,3]
[347653275,1736023848318,-500.0,0.00019452,2]
[347653276,1736023848328,-500.0,0.00019452,3]
[347653277,1736023848337,-500.0,0.00019452,3]
[347653278,1736023848347,-500.0,0.00019452,3]
[347653279,1736023848356,-500.0,0.00019452,3]
[347653280,1736023848366,-500.0,0.00019452,3]
[347653281,1736023848375,-500.0,0.00019452,3]
[347653282,1736023848385,-500.0,0.00019452,3]
[347653283,1736023848394,-500.0,0.00019452,3]
[347653284,1736023848404,-188.0,0.00019452,2]
[347653285,1736023848413,-500.0,0.00019452,3]
[347653286,1736023848423,-447.33893336,0.00019452,3]
[347653287,1736023848432,-500.0,0.00019452,3]
[347653288,1736023848441,-500.0,0.00019452,3]
[347653289,1736023848451,-500.0,0.00019452,3]
[347653290,1736023848460,-500.0,0.00019452,3]
[347653291,1736023848469,-1745.46,0.00019452,3]
[347653292,1736023848479,-500.0,0.00019452,3]
[347653293,1736023848488,-1021.38,0.00019452,3]
[347653294,1736023848498,-500.0,0.00019452,3]
[347653295,1736023848508,-500.0,0.00019452,3]
[347653296,1736023848518,-500.0,0.00019452,3]
[347653297,1736023848527,-638.4,0.00019452,3]
[347653298,1736023848537,-712.61,0.00019452,3]
[347653299,1736023848546,-834.57,0.00019452,3]
[347653300,1736023848556,-500.0,0.00019452,3]
[347653301,1736023848565,-500.0,0.00019452,3]
[347653302,1736023848574,-500.0,0.00019452,3]
[347653303,1736023848584,-500.0,0.00019452,3]
[347653304,1736023848593,-500.0,0.00019452,3]
[347653305,1736023848602,-500.0,0.00019452,3]
[347653306,1736023848612,-500.0,0.00019452,3]
[347653307,1736023848622,-1543.35,0.00019452,3]
[347653308,1736023848632,-500.0,0.00019452,3]
[347653309,1736023848641,-500.0,0.00019452,3]
[347653310,1736023848650,-500.0,0.00019452,3]
[347653311,1736023848660,-504.38,0.00019452,3]
[347653312,1736023848670,-500.0,0.00019452,3]
[347653313,1736023848679,-500.0,0.00019452,3]
[347653314,1736023848688,-944.93,0.00019452,3]
[347653315,1736023848698,-500.0,0.00019452,3]
[347653316,1736023848708,-500.0,0.00019452,3]
[347653317,1736023848717,-500.0,0.00019452,3]
[347653318,1736023848727,-500.0,0.00019452,3]
[347653319,1736023848736,-500.0,0.00019452,3]
[347653320,1736023848746,-1167.04,0.00019452,3]
[347653321,1736023848755,-500.0,0.00019452,3]
[347653322,1736023848764,-500.0,0.00019452,3]
[347653323,1736023848774,-500.0,0.00019452,3]
[347653324,1736023848783,-500.0,0.00019452,3]
[347653325,1736023848792,-500.0,0.00019452,3]
[347653326,1736023848801,-951.49,0.00019452,3]
[347653327,1736023848810,-500.0,0.00019452,3]
[347653328,1736023848819,-500.0,0.00019452,3]
[347653329,1736023848828,-500.0,0.00019452,3]
[347653330,1736023848837,-951.05,0.00019452,3]
[347653331,1736023848847,-370.0739886,0.00019452,3]
[347653332,1736023848856,-500.0,0.00019452,3]
[347653333,1736023848865,-500.0,0.00019452,3]
[347653334,1736023848874,-500.0,0.00019452,3]
[347653335,1736023848884,-500.0,0.00019452,3]
[347653336,1736023848893,-500.0,0.00019452,3]
[347653337,1736023848902,-500.0,0.00019452,3]
[347653338,1736023848912,-500.0,0.00019452,3]
[347653339,1736023848921,-500.0,0.00019452,3]
[347653340,1736023848930,-1617.07,0.00019452,3]
[347653341,1736023848940,-500.0,0.00019452,3]
[347653342,1736023848949,-500.0,0.00019452,3]
[347653343,1736023848959,-500.0,0.00019452,3]
[347653344,1736023848968,-500.0,0.00019452,3]
[347653345,1736023848977,-500.0,0.00019452,3]
[347653346,1736023848987,-500.0,0.00019452,3]
[347653347,1736023848996,-500.0,0.00019452,3]
[347653348,1736023849005,-1120.88,0.00019452,3]
[347653349,1736023849014,-1794.5,0.00019452,3]
[347653350,1736023849025,-932.14,0.00019452,3]
[347653351,1736023849034,-500.0,0.00019452,3]
[347653352,1736023849043,-500.0,0.00019452,3]
[347653353,1736023849052,-500.0,0.00019452,3]
[347653354,1736023849062,-500.0,0.00019452,3]
[347653355,1736023849071,-417.83327772,0.00019452,3]
[347653356,1736023849080,-500.0,0.00019452,3]
[347653357,1736023849094,-500.0,0.00019452,3]
[347653358,1736023849104,-502.22519618,0.00019452,3]
[347653359,1736023849113,-500.0,0.00019452,3]
[347653360,1736023849122,-500.0,0.00019452,3]
[347653361,1736023849132,-500.0,0.00019452,3]
[347653362,1736023849143,-500.0,0.00019452,3]
[347653363,1736023849152,-500.0,0.00019452,3]
[347653364,1736023849162,-500.0,0.00019452,3]
[347653365,1736023849171,-500.0,0.00019452,3]
[347653366,1736023849181,-500.0,0.00019452,3]
[347653367,1736023849190,-500.0,0.00019452,3]
[347653368,1736023849200,-500.0,0.00019452,3]
[347653369,1736023849209,-500.0,0.00019452,3]
[347653370,1736023849218,-500.0,0.00019452,3]
[347653371,1736023849228,-500.0,0.00019452,3]
[347653372,1736023849237,-1072.0,0.00019452,3]
[347653373,1736023849246,-500.0,0.00019452,3]
[347653374,1736023849256,-500.0,0.00019452,3]
[347653375,1736023849265,-500.0,0.00019452,3]
[347653376,1736023849276,-500.0,0.00019452,3]
[347653377,1736023849284,-500.0,0.00019452,3]
[347653378,1736023849294,-500.0,0.00019452,3]
[347653379,1736023849303,-500.0,0.00019452,3]
[347653380,1736023849312,-951.73,0.00019452,3]
[347653381,1736023849321,-584.42624184,0.00019452,3]
[347653382,1736023849330,-199.6657811,0.00019452,3]
[347653383,1736023849339,-709.21,0.00019452,3]
[347653384,1736023849348,-205.07514219,0.00019452,3]
[347653385,1736023849357,-972.5,0.00019452,3]
[347653386,1736023849367,-500.0,0.00019452,3]
[347653387,1736023849377,-644.58,0.00019452,3]
[347653388,1736023849386,-500.0,0.00019452,3]
[347653389,1736023849395,-1534.02,0.00019452,3]
[347653390,1736023849404,-500.0,0.00019452,3]
[347653391,1736023849413,-500.0,0.00019452,3]
[347653392,1736023849422,-500.0,0.00019452,3]
[347653393,1736023849431,-500.0,0.00019452,3]
[347653394,1736023849440,-500.0,0.00019452,3]
[347653395,1736023849449,-500.0,0.00019452,3]
[347653396,1736023849458,-507.44257794,0.00019452,3]
[347653397,1736023849467,-500.0,0.00019452,3]
[347653398,1736023849476,-500.0,0.00019452,3]
[347653399,1736023849485,-500.0,0.00019452,3]
[347653400,1736023849494,-500.0,0.00019452,3]
[347653401,1736023849503,-555.91,0.00019452,3]
[347653402,1736023849512,-500.0,0.00019452,3]
[347653403,1736023849523,-500.0,0.00019452,3]
[347653404,1736023849532,-500.0,0.00019452,3]
[347653405,1736023849542,-500.0,0.00019452,3]
[347653406,1736023849551,-500.0,0.00019452,3]
[347653407,1736023849560,-500.0,0.00019452,3]
[347653408,1736023849569,-500.0,0.00019452,3]
[347653409,1736023849578,-500.0,0.00019452,3]
[347653410,1736023849587,-500.0,0.00019452,3]
[347653411,1736023849596,-500.0,0.00019452,3]
[347653412,1736023849605,-500.0,0.00019452,3]
[347653413,1736023849614,-500.0,0.00019452,3]
[347653414,1736023849623,-500.0,0.00019452,3]
[347653415,1736023849632,-500.0,0.00019452,3]
[347653416,1736023849641,-2047.69,0.00019452,3]
[347653417,1736023849650,-500.0,0.00019452,3]
[347653418,1736023849659,-500.0,0.00019452,2]
[347653419,1736023849667,-500.0,0.00019452,3]
[347653420,1736023849676,-505.67659706,0.00019452,3]
[347653421,1736023849686,-500.0,0.00019452,3]
[347653422,1736023849695,-501.99912002,0.00019452,3]
[347653423,1736023849704,-500.0,0.00019452,3]
[347653424,1736023849713,-500.0,0.00019452,3]
[347653425,1736023849722,-505.21181587,0.00019452,3]
[347653426,1736023849731,-500.0,0.00019452,3]
[347653427,1736023849740,-520.6055607,0.00019452,3]
[347653428,1736023849750,-500.0,0.00019452,3]
[347653429,1736023849759,-503.62336018,0.00019452,3]
[347653430,1736023849768,-500.0,0.00019452,3]
[347653431,1736023849778,-500.0,0.00019452,3]
[347653432,1736023849787,-12497.73,0.00019452,3]
[347653433,1736023849796,-854.84,0.00019452,3]
[347653434,1736023849805,-500.0,0.00019452,3]
[347653435,1736023849814,-640.12449582,0.00019452,3]
[347653436,1736023849823,-500.0,0.00019452,3]
[347653437,1736023849832,-501.74628215,0.00019452,3]
[347653438,1736023849841,-502.01128024,0.00019452,3]
[347653439,1736023849851,-500.0,0.00019452,3]
[347653440,1736023849860,-502.05801476,0.00019452,3]
[347653441,1736023849870,-500.0,0.00019452,3]
[347653442,1736023849879,-500.0,0.00019452,3]
[347653443,1736023849888,-500.0,0.00019452,3]
[347653444,1736023849897,-500.0,0.00019452,3]
[347653445,1736023849906,-500.0,0.00019452,3]
[347653446,1736023849915,-501.90888916,0.00019452,3]
[347653447,1736023849924,-497.09399705,0.00019452,3]
[347653448,1736023849934,-500.0,0.00019452,3]
[347653449,1736023849943,-5645.44,0.00019452,3]
[347653450,1736023849952,-500.0,0.00019452,3]
[347653451,1736023849962,-500.0,0.00019452,3]
[347653452,1736023849971,-500.0,0.00019452,3]
[347653453,1736023849981,-500.0,0.00019452,3]
[347653454,1736023849990,-500.0,0.00019452,3]
[347653455,1736023850001,-500.0,0.00019452,3]
[347653456,1736023850011,-500.0,0.00019452,3]
[347653457,1736023850021,-500.0,0.00019452,3]
[347653458,1736023850031,-500.0,0.00019452,3]
[347653459,1736023850040,-500.0,0.00019452,3]
[347653460,1736023850050,-570.25,0.00019452,3]
[347653461,1736023850060,-2155.92,0.00019452,3]
[347653462,1736023850069,-1068.17,0.00019452,3]
[347653463,1736023850078,-500.0,0.00019452,3]
[347653464,1736023850090,-595.91,0.00019452,3]
[347653465,1736023850098,-500.0,0.00019452,3]
[347653466,1736023850108,-500.0,0.00019452,3]
[347653467,1736023850118,-6473.84,0.00019452,3]
[347653468,1736023850128,-2366.5,0.00019452,2]
[347653469,1736023850138,-500.0,0.00019452,3]
[347653470,1736023850147,-500.0,0.00019452,3]
[347653471,1736023850277,-500.0,0.00019452,3]
[347653472,1736023850287,-500.0,0.00019452,3]
[347653473,1736023850297,-500.92148755,0.00019452,3]
[347653474,1736023850308,-926.17,0.00019452,3]
[347653475,1736023850317,-573.19178627,0.00019452,3]
[347653476,1736023850325,-500.0,0.00019452,3]
[347653477,1736023850334,-500.0,0.00019452,3]
[347653478,1736023850343,-578.12,0.00019452,3]
[347653479,1736023850353,-500.0,0.00019452,3]
[347653480,1736023850362,-200.0,0.00019452,3]
[347653481,1736023850372,-1173.78,0.00019452,3]
[347653482,1736023850381,-500.0,0.00019452,3]
[347653483,1736023850391,-2135.74,0.00019452,3]
[347653484,1736023850400,-500.0,0.00019452,3]
[347653485,1736023850410,-500.0,0.00019452,3]
[347653486,1736023850419,-500.0,0.00019452,3]
[347653487,1736023850429,-500.0,0.00019452,3]
[347653488,1736023850438,-500.0,0.00019452,3]
[347653489,1736023850447,-500.0,0.00019452,3]
[347653490,1736023850456,-500.0,0.00019452,3]
[347653491,1736023850466,-500.0,0.00019452,3]